Cogmind - Beta 11 X11 --- EXPLORER MODE // 2022.03.06 @ 16:31:53 Player: AI52487963 Result: Self-destructed Performance ------------- Evolutions (2) 1000 Regions Visited (8) 1600 Robots Destroyed (44) 220 Value Destroyed (1267) 1267 Prototype IDs (7) 140 Alien Tech Used (0) 0 Bonus (322) 322 TOTAL SCORE: 4549 Bonus ------- High Alert Combat Kills 22 Aligned with FarCom 300 Cogmind --------- Core Integrity 290/550 Matter 26/300 Energy 100/100 System Corruption 1% Temperature Cool (0) Movement Core (50) Location -8/Storage Parts ------- > --- POWER (1) -------- (None) > --- PROPULSION (2) --- (None) > --- UTILITY (7) ------ (None) > --- WEAPON (2) ------- (None) > --- INVENTORY (5) ---- Ion Engine Light Treads Light Treads Armored Wheel Transport Network Coupler Peak State ------------ > --- POWER ------------ Heavy Ion Engine > --- PROPULSION ------- Armored Wheel Armored Wheel > --- UTILITY ---------- High-capacity Storage Unit Improved Signal Interpreter Terrain Scanner Terrain Scan Processor Targeting Computer Targeting Computer Supersonic Drone Bay > --- WEAPON ----------- Assault Cannon Rocket Launcher > --- INVENTORY -------- Ion Engine Ion Engine Light Treads Light Treads Armored Wheel Armored Wheel Medium Matter Pod Sensor Array Transport Network Coupler Targeting Computer Light Armor Plating Medium Armor Plating Tractor Beam High-powered Tractor Beam Assault Cannon [Rating: 31] Favorites ----------- Power Ion Engine Engine Ion Engine Propulsion Light Treads Treads Light Treads Leg Aluminum Leg Wheel Armored Wheel Flight Unit Improved Flight Unit Utility Targeting Computer Device Supersonic Drone Bay Storage High-capacity Storage Unit Processor Targeting Computer Protection Medium Armor Plating Weapon Assault Rifle Ballistic Gun Assault Rifle Ballistic Cannon Assault Cannon Launcher Rocket Launcher Build | -11 -10 -10 -9 -9 -9 -8 -8 -8 ------- Run | Scr Mat Min Mat Min Exi Min Mat Sto Slots Evolved 5 | . 1 . 2 . . . 2 . Power . | . . . . . . . . . Propulsion . | . . . . . . . . . Utility 5 | . 1 . 2 . . . 2 . Weapon . | . . . . . . . . . Parts Attached 44 | 9 4 2 7 1 1 . 14 6 Power 4 | 1 . . 1 . . . 1 1 Engine 4 | 1 . . 1 . . . 1 1 Core . | . . . . . . . . . Reactor . | . . . . . . . . . Propulsion 11 | 3 2 . 2 . . . 2 2 Treads 5 | 2 1 . . . . . 2 . Leg 1 | 1 . . . . . . . . Wheel 4 | . . . 2 . . . . 2 Hover . | . . . . . . . . . Flight 1 | . 1 . . . . . . . Utility 14 | 2 2 . 2 . 1 . 6 1 Device 5 | . . . 1 . 1 . 3 . Storage 3 | 1 1 . . . . . 1 . Processor 5 | 1 1 . 1 . . . 1 1 Hackware . | . . . . . . . . . Protection 1 | . . . . . . . 1 . Artifact . | . . . . . . . . . Weapon 15 | 3 . 2 2 1 . . 5 2 Energy Gun . | . . . . . . . . . Energy Cannon . | . . . . . . . . . Ballistic Gun 4 | 3 . 1 . . . . . . Ballistic Cannon 6 | . . . 2 . . . 2 2 Launcher 5 | . . 1 . 1 . . 3 . Special Weapon . | . . . . . . . . . Impact Weapon . | . . . . . . . . . Slashing Weapon . | . . . . . . . . . Piercing Weapon . | . . . . . . . . . Special Melee Weapon . | . . . . . . . . . Unidentified Prototypes 4 | . 1 . 1 . 2 . . . Parts Lost 14 | . . . . . . . 9 5 Power 1 | . . . . . . . . 1 Propulsion 1 | . . . . . . . 1 . Utility 7 | . . . . . . . 5 2 Weapon 5 | . . . . . . . 3 2 Highest Loss Streak 5 | . . . . . . . 4 5 To Critical Strikes . | . . . . . . . . . Average Slot Usage (%) 97 | . 100 100 99 100 100 100 94 85 Engine 10 | . 12 12 10 10 10 10 7 7 Treads 13 | . 25 25 5 . . . 1 . Wheel 8 | . . . 14 20 20 20 14 15 Device 5 | . . . 10 10 10 10 13 7 Storage 11 | . 12 12 10 10 10 10 10 15 Processor 26 | . 25 25 29 30 30 30 29 22 Ballistic Gun 12 | . 25 25 . . . . . . Ballistic Cannon 6 | . . . 18 13 10 10 10 14 Launcher 1 | . . . . 6 10 10 4 . Naked Turns 19 | . . . . . . . . 19 Heaviest Build 64 | 19 49 49 59 59 58 58 64 60 Greatest Support 40 | 40 40 40 40 24 24 24 40 24 Greatest Overweight (x) 4 | 1 1 1 2 2 2 2 4 2 Average Overweight (x) 1 | . . 1 1 2 2 2 2 1 Largest Inventory Capacity 20 | 10 20 20 20 20 20 20 20 20 Average Capacity 19 | 7 18 20 20 20 20 20 20 19 Most Carried 17 | 5 10 11 15 15 17 16 15 6 Average Carried 10 | 3 6 10 11 15 15 16 10 4 Final Capacity 20 | 10 20 20 20 20 20 20 20 5 Final Carried 16 | 3 9 11 15 15 16 16 7 5 Class Distribution -------------------- 93% | Hacker-Mutant 6% | Hacker-Skirmisher Dominant Class ---------------- Hacker-Mutant | -10/Materials Hacker-Mutant | -10/Mines Hacker-Mutant | -9/Materials Hacker-Mutant | -9/Mines Hacker-Mutant | -9/Exiles Hacker-Mutant | -8/Mines Hacker-Mutant | -8/Materials Hacker-Mutant | -8/Storage Resources | -11 -10 -10 -9 -9 -9 -8 -8 -8 ----------- Run | Scr Mat Min Mat Min Exi Min Mat Sto Matter Collected 1170 | 216 300 72 195 . . . 331 56 Remotely 184 | . . . . . . . 184 . Salvage Created 1212 | . 194 78 256 . . . 551 133 Parts 78 | . 17 7 14 . . . 28 12 Haulers Intercepted 4 | . 1 . 2 . . . 1 . Recyclers Shooed 2 | . 1 . . . . . 1 . Parts Field Recycled . | . . . . . . . . . Retrieved Matter . | . . . . . . . . . Parts Self-Destructed . | . . . . . . . . . Prevented . | . . . . . . . . . Kills | -11 -10 -10 -9 -9 -9 -8 -8 -8 ------- Run | Scr Mat Min Mat Min Exi Min Mat Sto Combat Hostiles Destroyed 28 | . 2 4 6 . . . 13 3 Guns 4 | . 2 2 . . . . . . Cannons 14 | . . . 6 . . . 5 3 AOE 10 | . . 2 . . . . 8 . Classes Destroyed 10 | . 5 1 2 . . . 2 . Worker 2 | . . . 1 . . . 1 . Builder 5 | . 1 . . . . . 4 . Tunneler 1 | . . . . . . . 1 . Hauler 4 | . 1 . 2 . . . 1 . Recycler 2 | . 1 . . . . . 1 . Watcher 2 | . 1 . . . . . . 1 Swarmer 4 | . 2 2 . . . . . . Grunt 15 | . . 2 4 . . . 9 . Sentry 7 | . . . 2 . . . 2 3 Specialist 2 | . . . . . . . 2 . Best Kill Streak 11 | . 4 2 5 . . . 11 2 Combat Bots Only 6 | . 2 2 4 . . . 6 1 Max Kills in Single Turn 7 | . 1 1 1 . . . 7 1 Gunslinging . | . . . . . . . . . Exploded 6 | . . 1 . . . . 6 . Melee . | . . . . . . . . . Uniques/NPCs Destroyed . | . . . . . . . . . Combat | -11 -10 -10 -9 -9 -9 -8 -8 -8 -------- Run | Scr Mat Min Mat Min Exi Min Mat Sto Damage Taken 1881 | . 22 27 203 . . . 1104 525 Core 283 | . . . 23 . . . 138 122 Absorbed by Shields . | . . . . . . . . . Core Remaining (%) 98 | 100 . 100 . . . 94 . . Volleys Fired 85 | . 17 4 19 . . . 29 16 Largest 2 | . 2 2 2 . . . 2 2 Hottest 88 | . 40 53 88 . . . 88 88 Shots Fired 160 | . 34 8 38 . . . 52 28 Gun 40 | . 34 6 . . . . . . Cannon 96 | . . . 38 . . . 30 28 Launcher 24 | . . 2 . . . . 22 . Special . | . . . . . . . . . Kinetic 136 | . 34 6 38 . . . 30 28 Thermal . | . . . . . . . . . Explosive 24 | . . 2 . . . . 22 . Electromagnetic . | . . . . . . . . . Robot Hit Streak 24 | . 15 8 24 . . . 12 15 Robot Miss Streak 2 | . 1 . 1 . . . 2 1 Penetration Max . | . . . . . . . . . Secondary Targets . | . . . . . . . . . Shots Hit Robots 116 | . 27 6 29 . . . 36 18 Core Hits 77 | . 10 6 10 . . . 45 6 Critical Kills . | . . . . . . . . . Critical Parts Destroyed . | . . . . . . . . . Critical Strikes 2 | . . . 1 . . . 1 . Blast 2 | . . . 1 . . . 1 . Melee Attacks . | . . . . . . . . . Impact . | . . . . . . . . . Slashing . | . . . . . . . . . Piercing . | . . . . . . . . . Sneak Attacks . | . . . . . . . . . Combat Hostiles . | . . . . . . . . . Follow-up Attacks . | . . . . . . . . . Damage Inflicted 3581 | . 353 189 694 . . . 1921 424 Guns 408 | . 349 59 . . . . . . Cannons 1525 | . . . 690 . . . 442 393 Explosions 1599 | . . 130 . . . . 1469 . Melee . | . . . . . . . . . Ramming 49 | . 4 . 4 . . . 10 31 Kinetic 1933 | . 349 59 690 . . . 442 393 Thermal 33 | . . 33 . . . . . . Explosive 1566 | . . 97 . . . . 1469 . Electromagnetic . | . . . . . . . . . Impact . | . . . . . . . . . Slashing . | . . . . . . . . . Piercing . | . . . . . . . . . Highest Corruption 1 | . . . 1 1 1 1 . 1 Average Corruption 1 | . . . 1 1 1 1 . 1 Corruption Purged . | . . . . . . . . . Corruption Blocked . | . . . . . . . . . Effects 7 | . . . 1 . 2 2 . 2 Message Errors 3 | . . . 1 . . 1 . 1 Matter Fused 2 | . . . . . 2 . . . Heat Flow Errors 1 | . . . . . . 1 . . Energy Discharges 1 | . . . . . . . . 1 Overload Shots . | . . . . . . . . . Overflow Damage 13 | . . . 13 . . . . . Projectiles 13 | . . . 13 . . . . . Explosions . | . . . . . . . . . Melee . | . . . . . . . . . Knockbacks 17 | . . . 8 . . . 2 7 Impact . | . . . . . . . . . Kinetic 12 | . . . 7 . . . 1 4 Secondary 5 | . . . 1 . . . 1 3 Self-Inflicted Damage 38 | . . . 2 . . . 22 14 Shots 2 | . . . . . . . 2 . Rammed 6 | . 1 . 1 . . . 1 3 Targets Rammed 6 | . 1 . 1 . . . 1 3 Kicked . | . . . . . . . . . Crushed . | . . . . . . . . . Highest Temperature 300 | . . . 300 . . 203 66 108 Average Temperature 68 | . . . 120 . . 104 27 38 Received Heat Transfer 816 | . . 9 150 . . . 378 279 Siege Activations . | . . . . . . . . . Robots Corrupted . | . . . . . . . . . Combat Hostiles . | . . . . . . . . . Parts Fried . | . . . . . . . . . Impact Corruptions . | . . . . . . . . . Robots Melted . | . . . . . . . . . Combat Hostiles . | . . . . . . . . . Parts Melted . | . . . . . . . . . Heat Transferred 50 | . . 50 . . . . . . Parts Sabotaged . | . . . . . . . . . Parts Stolen . | . . . . . . . . . Parts Stripped . | . . . . . . . . . Power Chain Reactions . | . . . . . . . . . Missiles Intercepted . | . . . . . . . . . Alert | -11 -10 -10 -9 -9 -9 -8 -8 -8 ------- Run | Scr Mat Min Mat Min Exi Min Mat Sto Peak Influence 442 | . 81 143 129 35 . . 442 195 Initial 37 | . . 22 . 35 . . . 37 Average 50 | . 48 27 52 35 . . 102 101 Maximum Alert Level 2 | . . . . . . . 2 . Low Security (%) 97 | 100 100 100 100 100 . 100 84 100 Level 1 1 | . . . . . . . 11 . Level 2 . | . . . . . . . 4 . Level 3 . | . . . . . . . . . Level 4 . | . . . . . . . . . Level 5 . | . . . . . . . . . High Security . | . . . . . . . . . Max Security . | . . . . . . . . . Squads Dispatched 8 | . . . 1 . . . 5 2 Investigation 1 | . . . . . . . . 1 Extermination . | . . . . . . . . . Reinforcement 7 | . . . 1 . . . 5 1 Assault . | . . . . . . . . . Garrison . | . . . . . . . . . Intercept . | . . . . . . . . . Searches Triggered . | . . . . . . . . . Construction Impeded 1 | . . . . . . . 1 . Haulers Reinforced . | . . . . . . . . . Active Scanning Responses . | . . . . . . . . . Cargo Convoy Interrupts . | . . . . . . . . . Stealth | -11 -10 -10 -9 -9 -9 -8 -8 -8 --------- Run | Scr Mat Min Mat Min Exi Min Mat Sto Distress Signals 5 | . . . 2 . . . 2 1 Communications Jammed . | . . . . . . . . . Distress Signals . | . . . . . . . . . Times Spotted 53 | . 5 4 11 . . . 23 10 Peak Tracking Total 8 | . 2 2 7 . . . 8 8 Tactical Retreats 3 | . . . . . . . 3 . Traps | -11 -10 -10 -9 -9 -9 -8 -8 -8 ------- Run | Scr Mat Min Mat Min Exi Min Mat Sto Traps Triggered 1 | . . . . . . . . 1 Indirectly . | . . . . . . . . . Trap Hack Attempts . | . . . . . . . . . Triggered . | . . . . . . . . . Disarmed . | . . . . . . . . . Reprogrammed . | . . . . . . . . . Reused . | . . . . . . . . . Traps Extracted . | . . . . . . . . . Installed . | . . . . . . . . . Triggered . | . . . . . . . . . Machines | -11 -10 -10 -9 -9 -9 -8 -8 -8 ---------- Run | Scr Mat Min Mat Min Exi Min Mat Sto Machines Disabled 4 | . . 2 . . . . . 2 Max in Single Turn 2 | . . 2 . . . . . 1 Machines Sabotaged . | . . . . . . . . . Garrisons Compromised . | . . . . . . . . . Overloaded Fab Kills . | . . . . . . . . . Hacking | -11 -10 -10 -9 -9 -9 -8 -8 -8 --------- Run | Scr Mat Min Mat Min Exi Min Mat Sto Machines Accessed 10 | . 2 1 1 . 3 . 1 2 Terminals 7 | . 2 1 1 . . . 1 2 Fabricators . | . . . . . . . . . Repair Stations . | . . . . . . . . . Recycling Units . | . . . . . . . . . Scanalyzers . | . . . . . . . . . Garrison Access . | . . . . . . . . . Total Hacks 49 | . 8 2 5 . 26 . 4 4 Successful 41 | . 4 2 4 . 26 . 2 3 Failed 8 | . 4 . 1 . . . 2 1 Catastrophic 1 | . . . . . . . . 1 Database Lockouts . | . . . . . . . . . Manual 20 | . 6 1 5 . 1 . 4 3 Terminals 23 | . 8 2 5 . . . 4 4 Fabricators . | . . . . . . . . . Repair Stations . | . . . . . . . . . Recycling Units . | . . . . . . . . . Scanalyzers . | . . . . . . . . . Garrison Access . | . . . . . . . . . Terminal Hacks 34 | . 2 1 2 . 26 . 1 2 Record 26 | . . . . . 26 . . . Prototype ID Bank 3 | . 1 . 1 . . . 1 . Open Door 1 | . . . . . . . . 1 Branch Access Points 2 | . 1 . 1 . . . . . Registered Prototypes 1 | . . . . . . . . 1 Zone Layout 1 | . . 1 . . . . . . Fabricator Hacks . | . . . . . . . . . Repair Station Hacks . | . . . . . . . . . Recycling Unit Hacks . | . . . . . . . . . Scanalyzer . | . . . . . . . . . Garrison Access Hacks . | . . . . . . . . . Unauthorized Hacks 6 | . 2 1 1 . . . 1 1 Terminals 6 | . 2 1 1 . . . 1 1 Botnet 6 | . 2 1 1 . . . 1 1 Fabricators . | . . . . . . . . . Repair Stations . | . . . . . . . . . Recycling Units . | . . . . . . . . . Scanalyzers . | . . . . . . . . . Garrison Access . | . . . . . . . . . Data Cores Recovered . | . . . . . . . . . Used . | . . . . . . . . . Hacking Detections 7 | . 2 1 1 . . . 1 2 Full Trace Events 2 | . 1 . . . . . . 1 Feedback Events 1 | . . . . . . . . 1 Corruption 1 | . . . . . . . . 1 Feedback Blocked . | . . . . . . . . . Robot Schematics Acquired . | . . . . . . . . . Robots Built . | . . . . . . . . . Authchips . | . . . . . . . . . Time . | . . . . . . . . . Total Robot Build Rating . | . . . . . . . . . Part Schematics Acquired . | . . . . . . . . . Parts Built . | . . . . . . . . . Authchips . | . . . . . . . . . Time . | . . . . . . . . . Total Part Build Rating . | . . . . . . . . . Parts Repaired . | . . . . . . . . . Time . | . . . . . . . . . Parts Recycled . | . . . . . . . . . Recycled Matter . | . . . . . . . . . Retrieved Matter . | . . . . . . . . . Retrieved Components . | . . . . . . . . . Parts Scanalyzed . | . . . . . . . . . Part Schematics Acquired . | . . . . . . . . . Parts Damaged . | . . . . . . . . . Bothacking | -11 -10 -10 -9 -9 -9 -8 -8 -8 ------------ Run | Scr Mat Min Mat Min Exi Min Mat Sto Used RIF Installer . | . . . . . . . . . Robots Hacked . | . . . . . . . . . Non-combat . | . . . . . . . . . Combat . | . . . . . . . . . Robot Hacks Applied . | . . . . . . . . . Relay Couplers Released . | . . . . . . . . . Fabnet Peak Effective % . | . . . . . . . . . Robots Rewired . | . . . . . . . . . Allies Hacked . | . . . . . . . . . Hacks Repelled . | . . . . . . . . . Allies | -11 -10 -10 -9 -9 -9 -8 -8 -8 -------- Run | Scr Mat Min Mat Min Exi Min Mat Sto Total Allies . | . . . . . . . . . Largest Group . | . . . . . . . . . Highest-Rated Group . | . . . . . . . . . Highest-Rated Ally . | . . . . . . . . . Total Orders 4 | . . . . . 2 1 1 . EXPLORE 3 | . . . . . 1 1 1 . RETURN 1 | . . . . . 1 . . . Ally Attacks . | . . . . . . . . . Total Damage . | . . . . . . . . . Kills . | . . . . . . . . . Allies Corrupted . | . . . . . . . . . Allies Melted . | . . . . . . . . . Intel | -11 -10 -10 -9 -9 -9 -8 -8 -8 ------- Run | Scr Mat Min Mat Min Exi Min Mat Sto Robot Analysis Total . | . . . . . . . . . Derelict Logs Recovered 2 | . . 2 . . . . . . Drone Launches 3 | . . . . . 1 1 1 . Drone Recoveries 2 | . . . . . 1 1 . . Exploration | -11 -10 -10 -9 -9 -9 -8 -8 -8 ------------- Run | Scr Mat Min Mat Min Exi Min Mat Sto Turns Passed 3458 | 98 360 1308 466 34 383 54 428 327 Spaces Moved 1760 | 58 134 528 239 28 300 38 231 204 Core 43 | 28 . . . . . . . 15 Treads 743 | 30 134 528 40 . . . 11 . Legs . | . . . . . . . . . Wheels 974 | . . . 199 28 300 38 220 189 Hover . | . . . . . . . . . Flight . | . . . . . . . . . Fastest Speed 50 | 50 160 240 120 120 120 120 120 50 Average Speed 166 | 110 219 240 140 120 120 120 127 114 Slowest Speed 240 | 160 240 240 240 120 120 120 240 120 Overloaded Moves . | . . . . . . . . . Propulsion Burnouts . | . . . . . . . . . Robots Hopped . | . . . . . . . . . Cave-ins Triggered . | . . . . . . . . . Time Travels 1 | . . . . . 1 . . . Exploration Rate (%) 44 | 5 31 99 19 8 91 71 41 37 Regions Visited 8 Branch Regions 5 Pre-discovered Areas 2 | . . 2 . . . . . . Known Exits Taken 8 | 1 1 1 1 1 1 1 1 . Unknown Exits Taken . | . . . . . . . . . Scrap Searched 2 | . . 2 . . . . . . Spaces Dug 4 | . . . . . . . 4 . Terrain Destroyed 120 | . . 28 2 . . . 86 4 Melee . | . . . . . . . . . Projectile 13 | . . . 2 . . . 7 4 AOE 107 | . . 28 . . . . 79 . Terrain Rammed . | . . . . . . . . . Walls Destroyed . | . . . . . . . . . Machines Disabled . | . . . . . . . . . Actions | -11 -10 -10 -9 -9 -9 -8 -8 -8 --------- Run | Scr Mat Min Mat Min Exi Min Mat Sto Total 2127 | 92 166 561 332 28 323 46 311 268 Wait 193 | 16 . 26 53 . 21 9 30 38 Move 1753 | 57 133 527 238 27 299 37 231 204 Hop . | . . . . . . . . . Pick Up 35 | 8 9 2 10 . 2 . 3 1 Fast Attach 3 | 3 . . . . . . . . Attach 23 | 5 2 . 4 . 1 . 8 3 Detach . | . . . . . . . . . Swap 18 | 1 2 2 3 1 . . 6 3 Drop 12 | 2 2 . 4 . . . 4 . Fire 85 | . 17 4 19 . . . 29 16 Melee . | . . . . . . . . . Ram 4 | . . . 1 . . . . 3 Kick . | . . . . . . . . . Crush 1 | . 1 . . . . . . . Escape Stasis . | . . . . . . . . . Rewire . | . . . . . . . . . Trap . | . . . . . . . . . Miscellaneous . | . . . . . . . . . Route ------- -11/Scrapyard -10/Materials (discovered 2 exits: *Min x2) -10/Mines (discovered 2 exits: *Mat x2) -9/Materials -9/Mines -9/Exiles (discovered 2 exits: *Min x2) -8/Mines -8/Materials (discovered 2 exits: *Fac / *Sto) -8/Storage History --------- Turn | Location | Event 10 | -11/Scrapyard | Identified exit to Materials 10 | -11/Scrapyard | Discovered exit to Materials (range 16) 99 | -11/Scrapyard | Entered Materials 99 | -10/Materials | Evolved 1 slot: Utility x1 316 | -10/Materials | Build established: Hacker-Mutant 391 | -10/Materials | Identified exit to Mines 459 | -10/Materials | Entered Mines 534 | -10/Mines | Learned location of Storage (-8) 560 | -10/Mines | Found a hidden stash of uninstalled traps 639 | -10/Mines | Received a Rocket Launcher from a helpful Derelict 1186 | -10/Mines | Identified exit to Materials 1186 | -10/Mines | Discovered exit to Materials (range 5) 1731 | -10/Mines | Discovered exit to Materials (range 3) 1767 | -10/Mines | Entered Materials 1767 | -9/Materials | Evolved 2 slots: Utility x2 1944 | -9/Materials | Identified exit to Mines 2233 | -9/Materials | Entered Mines 2234 | -9/Mines | Assembled infested the area 2263 | -9/Mines | Identified exit to Exiles 2263 | -9/Mines | Discovered exit to Exiles (range 5) 2267 | -9/Mines | Entered Exiles 2299 | -9/Exiles | Met 8R-AWN 2319 | -9/Exiles | Met EX-HEX 2355 | -9/Exiles | Met EX-BIN 2375 | -9/Exiles | Aligned with FarCom system 2377 | -9/Exiles | Given EX-Vault access code 2405 | -9/Exiles | Opened EX-Vault 2468 | -9/Exiles | Warned to stay clear of 0b10 Research branches 2512 | -9/Exiles | Found Prototype Device 2513 | -9/Exiles | Identified Chronowheel 2513 | -9/Exiles | Activated Chronowheel 2513 | -9/Exiles | Spacetime reconverged on an earlier point 2516 | -9/Exiles | Found Prototype Device 2517 | -9/Exiles | Identified Supersonic Drone Bay 2523 | -9/Exiles | Identified exit to Mines 2523 | -9/Exiles | Discovered exit to Mines (range 55) 2530 | -9/Exiles | Discovered exit to Mines (range 72) 2599 | -9/Exiles | Met EX-DEC 2650 | -9/Exiles | Left Exiles lab with Supersonic Drone Bay 2650 | -9/Exiles | Entered Mines 2652 | -8/Mines | Identified exit to Materials 2652 | -8/Mines | Discovered exit to Materials (range 9) 2704 | -8/Mines | Entered Materials 2704 | -8/Materials | Evolved 2 slots: Utility x2 2718 | -8/Materials | Identified exit to Factory 2718 | -8/Materials | Discovered exit to Factory (range 48) 2721 | -8/Materials | Identified exit to Storage 2721 | -8/Materials | Discovered exit to Storage (range 34) 3094 | -8/Materials | Lost 4 parts (1n2u1w) 3132 | -8/Materials | Entered Storage 3155 | -8/Storage | Lost 4 parts (2u2w) 3440 | -8/Storage | Released all parts (6) 3459 | -8/Storage | Self-destructed Last Messages --------------- Slammed into Y-45 Defender. Destabilizing: System interference. Imp. Signal Interpreter temporarily disabled. Assault Cannon temporarily disabled. Slammed into Y-45 Defender. Penetrated by Slug. Targeting Computer destroyed. Assault Cannon destroyed. Slammed into Y-45 Defender. Imp. Signal Interpreter broken. Destabilizing: Short circuit. Released Broken Imp. Signal Interpreter. Released Hcp. Storage Unit. Released Arm. Wheel. Released Med. Matter Pod. Released Supersonic Drone Bay. Connecting with Door Terminal... >>Open(Door) Sealed Heavy Doors opened. Slug penetrates Reinforced Barrier. Map ----- +----------------------------------------------------+ | ###??????????????????????????????????????????????? | | #??????????????????????????????????????????????? | | #??????????????????????????????????????????????? | | #??????????????????????????????????????????????? | | #??????????????????????????????????????????????? | | #??????????????????????????????????????????????? | | #########+####?####??????????????????????????????? | | ^ ??????????????????????????????? | | ??????????????????????????????? | | ??????????????????????????????? | | ##############?# #??????????b???????????????????? | | #????????????# #??????????g???????????????????? | | #????????????# #??????????????????????????????? | | #??????????### #??????????????????????????????? | | #???######## # #??????????????????????????????? | | #???#* # #??????????????????????????????? | | #???# """ %# #??????????????????????????????? | | #???# """ # #??????????????????????????????? | | #?### """ # ##########+#######?????????????? | | ###?#"" / = g o??????????? | | ????#"Y """ #!!= YY T??????????? | | ????#"" " " #!######Y####+#######?????????????? | | ????### % # #?# g##???????????????????????? | | ??????# %%+ ### hT#???????????????????????? | | ??????###### /## #### ###??????????????????????? | | ???????????#% ###! @#??????????????????????? | | ##?????????#% #?#! ]]#??????????????????????? | | ############# #?#[[[ ]]#??????????????????????? | | # #?#[[[ ]]#??????????????????????? | | + #?########??????????????????????? | | # #### ##+#???????????????????????????????? | | # #??# #??????????????????????????????????? | | # #??# #??????????????????????????????????? | | # #??# #??????????????????????????????????? | | ##### #??# #??????????????????????????????????? | | ????# #??# #??????????????????????????????????? | | ????# #??# #??????????????????????????????????? | | ????# #??# #??????????????????????????????????? | | ????# #### w#??????????????????????????????????? | | ??###/##"#/# #????Y????????????????????????????? | | ??# # #?????????????????????????????????? | | ??# """ # #?????????????????????????????????? | | ??# """ # #?????????????????????????????????? | | ??# """= # ??????????????????????????????????? | | ??# ! / / ??????????????????????????????? | | ?##% """= # ???????????????????????????????????? | | ?# """ #? #?????????????????????????????????? | | ?##% """ #?? #?????????????????????????????????? | | ??# #???#?????????????????????????????????? | | ??##""T""###?????????????????????????????????????? | +----------------------------------------------------+ Best States ------------- Heat Dissipation 31 Energy Generation 14 Energy Capacity 280 Matter Stores 300 Matter Capacity 400 Sight Range 16 Robot Scan Range 14 Terrain Scan Range 14 Terrain Scan Density 85 Armor Coverage 225 Resistance: KI 35 Resistance: TH 35 Resistance: EX 35 Resistance: EM 35 Resistance: I 35 Resistance: S 35 Resistance: P 35 Evasion (%) 50 Targeting Accuracy 10 Recoil Reduction 2 Offensive Hacking 20 Item Schematics ----------------- None Robot Schematics ------------------ None Fabricated ------------ Nothing Alien Tech Used ----------------- None Achievements -------------- Use The Force Challenges ------------ None Game ------ Seed FlightSpacefoldPerforator Manual? 0 Play Time 00:43:58 Cumulative 50.5 hours Start 2022.03.03 @ 17:22:08 End 2022.03.06 @ 16:31:53 Sessions 17 Manual Loads 0 Difficulty Explorer Special Mode None Game No. 15 Rogue 2 Adventurer 0 Explorer 13 Win Type - Total 2 Types 1/0/1/0/0/0/0/0/0 Lore% 37 Gallery% 38 Achievement% 42 Wizard Run 0 Options --------- ASCII 0 Keyboard 0 Movement Mouse Keybinds 0 Fullscreen 1 Font 24/Smallcaps Map View 76x50 Tactical HUD 0 Map Filters NONE Filters NONE Steam 1 RUN: 99e5090e-0006-4b9b-960f-3899efae51e0